[Event "Titled Tuesday Blitz May 03 Early 2022"]
[White "Jian, Alex"]
[Black "Ratnakaran, K."]
[WhiteFideId "30901022"]
[BlackFideId "5005507"]
[WhiteElo "2111"]
[BlackElo "2407"]
[Result "0-1"]
[Round "04"]
[TimeControl "180+1"]
[Date "2022.05.03"]
[WhiteClock "0:00:09"]
[BlackClock "0:01:18"]

1. d4 {[%clk 0:03:00]}  f5 {[%clk 0:02:59]} 2. g3 {[%clk 0:03:00]}  Nf6 {[%clk 0:02:59]} 3. Bg2 {[%clk 0:03:00]}  e6 {[%clk 0:02:59]} 4. Nf3 {[%clk 0:03:00]}  d5 {[%clk 0:02:59]} 5. O-O {[%clk 0:03:00]}  Bd6 {[%clk 0:02:59]} 6. c4 {[%clk 0:03:00]}  c6 {[%clk 0:02:59]} 7. b3 {[%clk 0:03:00]}  O-O {[%clk 0:02:59]} 8. Ba3 {[%clk 0:03:00]}  Bxa3 {[%clk 0:02:55]} 9. Nxa3 {[%clk 0:03:01]}  f4 {[%clk 0:02:56]} 10. gxf4 {[%clk 0:02:47]}  Qd6 {[%clk 0:02:55]} 11. Qc1 {[%clk 0:02:47]}  Ne4 {[%clk 0:02:50]} 12. Ne5 {[%clk 0:02:37]}  Nd7 {[%clk 0:02:44]} 13. Nb1 {[%clk 0:02:20]}  c5 {[%clk 0:02:42]} 14. dxc5 {[%clk 0:01:58]}  Nexc5 {[%clk 0:02:38]} 15. Nxd7 {[%clk 0:01:25]}  Bxd7 {[%clk 0:02:37]} 16. cxd5 {[%clk 0:01:22]}  exd5 {[%clk 0:02:38]} 17. e3 {[%clk 0:01:08]}  Rf6 {[%clk 0:02:34]} 18. Nd2 {[%clk 0:01:04]}  Rg6 {[%clk 0:02:34]} 19. Kh1 {[%clk 0:00:57]}  Rxg2 {[%clk 0:02:33]} 20. Kxg2 {[%clk 0:00:57]}  Bc6 {[%clk 0:02:34]} 21. f3 {[%clk 0:00:46]}  Re8 {[%clk 0:02:31]} 22. Qc3 {[%clk 0:00:38]}  Ne6 {[%clk 0:02:21]} 23. Rad1 {[%clk 0:00:31]}  d4 {[%clk 0:02:19]} 24. Ne4 {[%clk 0:00:24]}  Qb8 {[%clk 0:02:14]} 25. Qc4 {[%clk 0:00:19]}  dxe3 {[%clk 0:02:12]} 26. f5 {[%clk 0:00:18]}  e2 {[%clk 0:02:11]} 27. fxe6 {[%clk 0:00:14]}  exd1=Q {[%clk 0:02:10]} 28. Rxd1 {[%clk 0:00:12]}  Kh8 {[%clk 0:02:10]} 29. Nd6 {[%clk 0:00:09]}  h6 {[%clk 0:01:56]} 30. Nxe8 {[%clk 0:00:08]}  Qxe8 {[%clk 0:01:56]} 31. Re1 {[%clk 0:00:06]}  Qg6+ {[%clk 0:01:55]} 32. Kf2 {[%clk 0:00:03]}  Qf6 {[%clk 0:01:55]} 33. Qe2 {[%clk 0:00:02]}  Qh4+ {[%clk 0:01:54]} 34. Kg2 {[%clk 0:00:02]}  Qg4+ {[%clk 0:01:53]} 35. Kf2 {[%clk 0:00:02]}  Qh3 {[%clk 0:01:51]} 36. Kg1 {[%clk 0:00:01]}  Bxf3 {[%clk 0:01:50]} 37. Qf2 {[%clk 0:00:02]}  Qg4+ {[%clk 0:01:50]} 38. Kf1 {[%clk 0:00:02]}  Be4 {[%clk 0:01:36]} 39. e7 {[%clk 0:00:01]}  Bd3+ {[%clk 0:01:36]} 40. Re2 {[%clk 0:00:01]}  Bb5 {[%clk 0:01:22]} 41. Ke1 {[%clk 0:00:01]}  Qb4+ {[%clk 0:01:21]} 42. Kf1 {[%clk 0:00:01]}  Qxe7 {[%clk 0:01:19]} 43. Qf3 {[%clk 0:00:01]}  Qxe2+ {[%clk 0:01:16]} 44. Qxe2 {[%clk 0:00:02]}  Bxe2+ {[%clk 0:01:16]} 45. Kxe2 {[%clk 0:00:03]}  g5 {[%clk 0:01:17]} 46. Kf3 {[%clk 0:00:04]}  Kg7 {[%clk 0:01:16]} 47. Kg4 {[%clk 0:00:04]}  Kg6 {[%clk 0:01:17]} 48. h4 {[%clk 0:00:04]}  h5+ {[%clk 0:01:18]} 49. Kg3 {[%clk 0:00:04]}  g4 {[%clk 0:01:17]} 50. Kf4 {[%clk 0:00:05]}  Kf6 {[%clk 0:01:18]} 51. b4 {[%clk 0:00:05]}  b5 {[%clk 0:01:17]} 52. a3 {[%clk 0:00:05]}  Ke6 {[%clk 0:01:16]} 53. Ke4 {[%clk 0:00:06]}  a6 {[%clk 0:01:17]} 54. Kf4 {[%clk 0:00:06]}  Kd5 {[%clk 0:01:17]} 55. Kg5 {[%clk 0:00:06]}  g3 {[%clk 0:01:17]} 56. Kxh5 {[%clk 0:00:07]}  g2 {[%clk 0:01:18]} 57. Kh6 {[%clk 0:00:08]}  g1=Q {[%clk 0:01:17]} 58. h5 {[%clk 0:00:09]}  Ke6 {[%clk 0:01:18]} 59. Kh7 {[%clk 0:00:09]}  Kf7 {[%clk 0:01:18]} 60. Kh6 {[%clk 0:00:09]}  Qg7# {[%clk 0:01:18]} 0-1


[Site "https://www.chess.com"]

[Event "Titled Tuesday Blitz May 03 Early 2022"]
[White "Johnson, Ben"]
[Black "Rom, Jasper"]
[WhiteFideId "2010917"]
[BlackFideId "2023733"]
[WhiteElo "2205"]
[BlackElo "2233"]
[Result "0-1"]
[Round "04"]
[TimeControl "180+1"]
[Date "2022.05.03"]
[WhiteClock "0:00:09"]
[BlackClock "0:00:04"]

1. Nf3 {[%clk 0:03:00]}  d5 {[%clk 0:02:46]} 2. e3 {[%clk 0:03:01]}  e6 {[%clk 0:02:46]} 3. c4 {[%clk 0:03:00]}  Nf6 {[%clk 0:02:46]} 4. Nc3 {[%clk 0:03:00]}  c6 {[%clk 0:02:46]} 5. b3 {[%clk 0:02:59]}  Nbd7 {[%clk 0:02:46]} 6. Bb2 {[%clk 0:02:58]}  Bd6 {[%clk 0:02:47]} 7. Rg1 {[%clk 0:02:55]}  O-O {[%clk 0:02:47]} 8. g4 {[%clk 0:02:55]}  e5 {[%clk 0:02:47]} 9. g5 {[%clk 0:02:49]}  Ne4 {[%clk 0:02:47]} 10. Nxe4 {[%clk 0:02:24]}  dxe4 {[%clk 0:02:46]} 11. Nh4 {[%clk 0:02:25]}  Nc5 {[%clk 0:02:41]} 12. Qc2 {[%clk 0:02:18]}  a5 {[%clk 0:02:25]} 13. f3 {[%clk 0:02:01]}  f5 {[%clk 0:02:11]} 14. fxe4 {[%clk 0:01:51]}  fxe4 {[%clk 0:02:04]} 15. O-O-O {[%clk 0:01:43]}  Rf2 {[%clk 0:01:29]} 16. Rg2 {[%clk 0:01:37]}  Qf8 {[%clk 0:01:27]} 17. Be2 {[%clk 0:01:23]}  Rxg2 {[%clk 0:01:23]} 18. Nxg2 {[%clk 0:01:24]}  Qf2 {[%clk 0:01:22]} 19. Bf1 {[%clk 0:01:24]}  Bh3 {[%clk 0:01:19]} 20. d4 {[%clk 0:01:18]}  Qxc2+ {[%clk 0:00:53]} 21. Kxc2 {[%clk 0:01:18]}  Nd3 {[%clk 0:00:49]} 22. dxe5 {[%clk 0:00:59]}  Bxe5 {[%clk 0:00:40]} 23. Bxe5 {[%clk 0:00:57]}  Nxe5 {[%clk 0:00:40]} 24. Nf4 {[%clk 0:00:54]}  Bg4 {[%clk 0:00:36]} 25. Be2 {[%clk 0:00:49]}  Bf5 {[%clk 0:00:25]} 26. c5 {[%clk 0:00:42]}  Kf7 {[%clk 0:00:23]} 27. h4 {[%clk 0:00:42]}  Ke7 {[%clk 0:00:20]} 28. Bf1 {[%clk 0:00:34]}  Nd7 {[%clk 0:00:18]} 29. Nh5 {[%clk 0:00:20]}  Bg4 {[%clk 0:00:13]} 30. Rxd7+ {[%clk 0:00:16]}  Kxd7 {[%clk 0:00:11]} 31. Nxg7 {[%clk 0:00:16]}  Rf8 {[%clk 0:00:11]} 32. Bc4 {[%clk 0:00:15]}  Rf2+ {[%clk 0:00:10]} 33. Kc3 {[%clk 0:00:15]}  Ke7 {[%clk 0:00:09]} 34. h5 {[%clk 0:00:15]}  Rf3 {[%clk 0:00:07]} 35. g6 {[%clk 0:00:15]}  hxg6 {[%clk 0:00:06]} 36. h6 {[%clk 0:00:14]}  Rh3 {[%clk 0:00:06]} 37. Kd4 {[%clk 0:00:12]}  Rxh6 {[%clk 0:00:06]} 38. Kxe4 {[%clk 0:00:12]}  Rh7 {[%clk 0:00:06]} 39. Kf4 {[%clk 0:00:11]}  Bd7 {[%clk 0:00:06]} 40. Kg5 {[%clk 0:00:05]}  Rxg7 {[%clk 0:00:06]} 41. Kh6 {[%clk 0:00:06]}  Kf8 {[%clk 0:00:05]} 42. e4 {[%clk 0:00:06]}  Be8 {[%clk 0:00:04]} 43. e5 {[%clk 0:00:07]}  Bf7 {[%clk 0:00:05]} 44. Kg5 {[%clk 0:00:07]}  Bxc4 {[%clk 0:00:04]} 45. bxc4 {[%clk 0:00:08]}  Re7 {[%clk 0:00:04]} 46. e6 {[%clk 0:00:09]}  Rxe6 {[%clk 0:00:04]} 0-1


[Site "https://www.chess.com"]

[Event "Titled Tuesday Blitz May 03 Early 2022"]
[White "Jumabayev, Rinat"]
[Black "Bortnyk, Olexandr"]
[WhiteFideId "13702661"]
[BlackFideId "14120828"]
[WhiteElo "2561"]
[BlackElo "2723"]
[Result "1/2-1/2"]
[Round "04"]
[TimeControl "180+1"]
[Date "2022.05.03"]
[WhiteClock "0:00:04"]
[BlackClock "0:00:43"]

1. d4 {[%clk 0:03:00]}  d6 {[%clk 0:02:56]} 2. Nf3 {[%clk 0:02:59]}  Nf6 {[%clk 0:02:57]} 3. Bf4 {[%clk 0:02:58]}  g6 {[%clk 0:02:51]} 4. e3 {[%clk 0:02:59]}  Bg7 {[%clk 0:02:49]} 5. Be2 {[%clk 0:02:55]}  c5 {[%clk 0:02:49]} 6. c3 {[%clk 0:02:52]}  Qb6 {[%clk 0:02:43]} 7. Qb3 {[%clk 0:02:46]}  Be6 {[%clk 0:02:39]} 8. Qxb6 {[%clk 0:02:47]}  axb6 {[%clk 0:02:40]} 9. a3 {[%clk 0:02:47]}  Nc6 {[%clk 0:02:40]} 10. Nbd2 {[%clk 0:02:47]}  O-O {[%clk 0:02:39]} 11. O-O {[%clk 0:02:45]}  Rfc8 {[%clk 0:02:32]} 12. Rfc1 {[%clk 0:02:17]}  h6 {[%clk 0:02:12]} 13. h3 {[%clk 0:02:17]}  g5 {[%clk 0:02:12]} 14. Bh2 {[%clk 0:02:16]}  Na5 {[%clk 0:02:06]} 15. Bd3 {[%clk 0:02:09]}  Nb3 {[%clk 0:02:02]} 16. Nxb3 {[%clk 0:02:08]}  Bxb3 {[%clk 0:02:02]} 17. Nd2 {[%clk 0:02:07]}  Be6 {[%clk 0:02:00]} 18. Kf1 {[%clk 0:01:31]}  Nd5 {[%clk 0:01:35]} 19. Ke2 {[%clk 0:01:24]}  Nc7 {[%clk 0:01:30]} 20. f4 {[%clk 0:01:18]}  Bd7 {[%clk 0:01:04]} 21. g4 {[%clk 0:01:11]}  b5 {[%clk 0:01:02]} 22. Nf3 {[%clk 0:01:06]}  Bf6 {[%clk 0:00:56]} 23. e4 {[%clk 0:01:01]}  cxd4 {[%clk 0:00:42]} 24. cxd4 {[%clk 0:00:58]}  Ne6 {[%clk 0:00:42]} 25. e5 {[%clk 0:00:58]}  dxe5 {[%clk 0:00:38]} 26. fxe5 {[%clk 0:00:55]}  Bg7 {[%clk 0:00:37]} 27. Be4 {[%clk 0:00:47]}  Ra4 {[%clk 0:00:36]} 28. Ke3 {[%clk 0:00:46]}  Rxc1 {[%clk 0:00:28]} 29. Rxc1 {[%clk 0:00:46]}  b4 {[%clk 0:00:29]} 30. Bc2 {[%clk 0:00:31]}  Ra6 {[%clk 0:00:28]} 31. axb4 {[%clk 0:00:30]}  Rb6 {[%clk 0:00:28]} 32. d5 {[%clk 0:00:30]}  Nf4 {[%clk 0:00:27]} 33. Be4 {[%clk 0:00:27]}  Rxb4 {[%clk 0:00:23]} 34. Rc7 {[%clk 0:00:27]}  Rb3+ {[%clk 0:00:23]} 35. Kd2 {[%clk 0:00:27]}  Rxb2+ {[%clk 0:00:18]} 36. Kc1 {[%clk 0:00:24]}  Rb4 {[%clk 0:00:15]} 37. Bc2 {[%clk 0:00:08]}  Ba4 {[%clk 0:00:15]} 38. Rc8+ {[%clk 0:00:07]}  Bf8 {[%clk 0:00:15]} 39. Bxa4 {[%clk 0:00:03]}  Rxa4 {[%clk 0:00:16]} 40. d6 {[%clk 0:00:03]}  exd6 {[%clk 0:00:08]} 41. exd6 {[%clk 0:00:04]}  Ne6 {[%clk 0:00:05]} 42. d7 {[%clk 0:00:04]}  Ra3 {[%clk 0:00:04]} 43. Bd6 {[%clk 0:00:03]}  Rd3 {[%clk 0:00:01]} 44. Bxf8 {[%clk 0:00:03]}  Rxd7 {[%clk 0:00:01]} 45. Bb4+ {[%clk 0:00:03]}  Kh7 {[%clk 0:00:01]} 46. Bc3 {[%clk 0:00:04]}  Rd3 {[%clk 0:00:01]} 47. Rh8+ {[%clk 0:00:03]}  Kg6 {[%clk 0:00:01]} 48. Ne5+ {[%clk 0:00:04]}  Kg7 {[%clk 0:00:02]} 49. Nxd3+ {[%clk 0:00:05]}  f6 {[%clk 0:00:02]} 50. Rb8 {[%clk 0:00:04]}  Kg6 {[%clk 0:00:02]} 51. Rxb7 {[%clk 0:00:04]}  h5 {[%clk 0:00:03]} 52. Rb6 {[%clk 0:00:05]}  Kf7 {[%clk 0:00:03]} 53. Rxe6 {[%clk 0:00:05]}  Kxe6 {[%clk 0:00:03]} 54. Nf2 {[%clk 0:00:06]}  hxg4 {[%clk 0:00:03]} 55. hxg4 {[%clk 0:00:07]}  f5 {[%clk 0:00:04]} 56. Kd2 {[%clk 0:00:07]}  fxg4 {[%clk 0:00:03]} 57. Nxg4 {[%clk 0:00:08]}  Kf5 {[%clk 0:00:04]} 58. Ne3+ {[%clk 0:00:08]}  Kf4 {[%clk 0:00:05]} 59. Ke2 {[%clk 0:00:09]}  g4 {[%clk 0:00:05]} 60. Be1 {[%clk 0:00:10]}  g3 {[%clk 0:00:06]} 61. Ng2+ {[%clk 0:00:10]}  Ke4 {[%clk 0:00:07]} 62. Bxg3 {[%clk 0:00:10]}  Kd4 {[%clk 0:00:08]} 63. Nf4 {[%clk 0:00:10]}  Ke4 {[%clk 0:00:08]} 64. Bh2 {[%clk 0:00:10]}  Kd4 {[%clk 0:00:09]} 65. Kf3 {[%clk 0:00:10]}  Kc4 {[%clk 0:00:10]} 66. Bg1 {[%clk 0:00:10]}  Kc3 {[%clk 0:00:10]} 67. Be3 {[%clk 0:00:11]}  Kc4 {[%clk 0:00:11]} 68. Ke4 {[%clk 0:00:12]}  Kb5 {[%clk 0:00:12]} 69. Nd5 {[%clk 0:00:12]}  Kc6 {[%clk 0:00:12]} 70. Bd4 {[%clk 0:00:12]}  Kd6 {[%clk 0:00:13]} 71. Ne3 {[%clk 0:00:13]}  Kc6 {[%clk 0:00:14]} 72. Nf5 {[%clk 0:00:13]}  Kb5 {[%clk 0:00:15]} 73. Kd5 {[%clk 0:00:14]}  Kb4 {[%clk 0:00:16]} 74. Ne3 {[%clk 0:00:14]}  Kb3 {[%clk 0:00:17]} 75. Kc5 {[%clk 0:00:14]}  Ka4 {[%clk 0:00:17]} 76. Kc4 {[%clk 0:00:14]}  Ka5 {[%clk 0:00:18]} 77. Bc5 {[%clk 0:00:15]}  Ka6 {[%clk 0:00:19]} 78. Nd5 {[%clk 0:00:12]}  Kb7 {[%clk 0:00:20]} 79. Kb5 {[%clk 0:00:13]}  Kc8 {[%clk 0:00:20]} 80. Kc6 {[%clk 0:00:13]}  Kd8 {[%clk 0:00:21]} 81. Nc7 {[%clk 0:00:12]}  Kc8 {[%clk 0:00:22]} 82. Nd5 {[%clk 0:00:12]}  Kb8 {[%clk 0:00:23]} 83. Bd6+ {[%clk 0:00:08]}  Kc8 {[%clk 0:00:24]} 84. Nb6+ {[%clk 0:00:07]}  Kd8 {[%clk 0:00:25]} 85. Nd5 {[%clk 0:00:07]}  Ke8 {[%clk 0:00:26]} 86. Nc7+ {[%clk 0:00:05]}  Kf7 {[%clk 0:00:26]} 87. Be5 {[%clk 0:00:06]}  Kg6 {[%clk 0:00:26]} 88. Kd5 {[%clk 0:00:06]}  Kf5 {[%clk 0:00:27]} 89. Nb5 {[%clk 0:00:06]}  Kg4 {[%clk 0:00:28]} 90. Nd4 {[%clk 0:00:07]}  Kh3 {[%clk 0:00:28]} 91. Ke4 {[%clk 0:00:07]}  Kg2 {[%clk 0:00:29]} 92. Bf4 {[%clk 0:00:06]}  Kf2 {[%clk 0:00:30]} 93. Be3+ {[%clk 0:00:06]}  Kg2 {[%clk 0:00:31]} 94. Kf4 {[%clk 0:00:06]}  Kh3 {[%clk 0:00:31]} 95. Kf3 {[%clk 0:00:06]}  Kh4 {[%clk 0:00:32]} 96. Kf4 {[%clk 0:00:03]}  Kh3 {[%clk 0:00:33]} 97. Bf2 {[%clk 0:00:03]}  Kg2 {[%clk 0:00:33]} 98. Ke3 {[%clk 0:00:04]}  Kh3 {[%clk 0:00:34]} 99. Kf3 {[%clk 0:00:04]}  Kh2 {[%clk 0:00:34]} 100. Ne2 {[%clk 0:00:04]}  Kh3 {[%clk 0:00:35]} 101. Nf4+ {[%clk 0:00:04]}  Kh2 {[%clk 0:00:36]} 102. Bg3+ {[%clk 0:00:05]}  Kh1 {[%clk 0:00:36]} 103. Bf2 {[%clk 0:00:03]}  Kh2 {[%clk 0:00:37]} 104. Be3 {[%clk 0:00:02]}  Kh1 {[%clk 0:00:38]} 105. Ne2 {[%clk 0:00:02]}  Kh2 {[%clk 0:00:38]} 106. Nd4 {[%clk 0:00:02]}  Kh3 {[%clk 0:00:39]} 107. Nf5 {[%clk 0:00:02]}  Kh2 {[%clk 0:00:40]} 108. Ng3 {[%clk 0:00:03]}  Kh3 {[%clk 0:00:41]} 109. Bg1 {[%clk 0:00:03]}  Kh4 {[%clk 0:00:41]} 110. Ne4 {[%clk 0:00:03]}  Kh3 {[%clk 0:00:42]} 111. Ng5+ {[%clk 0:00:04]}  Kh4 {[%clk 0:00:43]} 112. Kf4 {[%clk 0:00:04]} 1/2-1/2


[Site "https://www.chess.com"]

[Event "Titled Tuesday Blitz May 03 Early 2022"]
[White "Kamsky, Gata"]
[Black "Trost, Edvin"]
[WhiteFideId "2000024"]
[BlackFideId "1729519"]
[WhiteElo "2645"]
[BlackElo "2160"]
[Result "1-0"]
[Round "04"]
[TimeControl "180+1"]
[Date "2022.05.03"]
[WhiteClock "0:00:36"]
[BlackClock "0:01:25"]

1. d4 {[%clk 0:03:00]}  Nf6 {[%clk 0:02:58]} 2. Nf3 {[%clk 0:02:55]}  d5 {[%clk 0:02:56]} 3. Bf4 {[%clk 0:02:54]}  c5 {[%clk 0:02:44]} 4. e3 {[%clk 0:02:53]}  Nc6 {[%clk 0:02:45]} 5. Nbd2 {[%clk 0:02:52]}  e6 {[%clk 0:02:44]} 6. c3 {[%clk 0:02:50]}  Be7 {[%clk 0:02:44]} 7. h4 {[%clk 0:02:41]}  h6 {[%clk 0:02:31]} 8. Ne5 {[%clk 0:02:37]}  Nxe5 {[%clk 0:02:29]} 9. dxe5 {[%clk 0:02:36]}  Nd7 {[%clk 0:02:30]} 10. Qg4 {[%clk 0:02:33]}  Bf8 {[%clk 0:02:22]} 11. Bd3 {[%clk 0:02:26]}  b6 {[%clk 0:02:18]} 12. h5 {[%clk 0:01:45]}  Bb7 {[%clk 0:02:16]} 13. O-O {[%clk 0:01:44]}  Qc8 {[%clk 0:02:07]} 14. e4 {[%clk 0:01:40]}  Qc7 {[%clk 0:02:03]} 15. exd5 {[%clk 0:01:38]}  Bxd5 {[%clk 0:02:02]} 16. Rfe1 {[%clk 0:01:27]}  O-O-O {[%clk 0:01:58]} 17. Ba6+ {[%clk 0:01:18]}  Kb8 {[%clk 0:01:56]} 18. c4 {[%clk 0:01:16]}  Bc6 {[%clk 0:01:54]} 19. a4 {[%clk 0:01:09]}  g5 {[%clk 0:01:45]} 20. hxg6 {[%clk 0:01:04]}  Rg8 {[%clk 0:01:45]} 21. f3 {[%clk 0:00:46]}  Rxg6 {[%clk 0:01:41]} 22. Qh4 {[%clk 0:00:42]}  Bg7 {[%clk 0:01:37]} 23. a5 {[%clk 0:00:40]}  Bxe5 {[%clk 0:01:24]} 24. Rxe5 {[%clk 0:00:36]}  Nxe5 {[%clk 0:01:25]} 25. Bxe5 {[%clk 0:00:36]} 1-0


[Site "https://www.chess.com"]

[Event "Titled Tuesday Blitz May 03 Early 2022"]
[White "Karolczuk, Iwo"]
[Black "Sztokbant, Bernardo Vainzoff"]
[WhiteFideId "21816972"]
[BlackFideId "2115956"]
[WhiteElo "2277"]
[BlackElo "2225"]
[Result "1-0"]
[Round "04"]
[TimeControl "180+1"]
[Date "2022.05.03"]
[WhiteClock "0:00:06"]
[BlackClock "0:00:04"]

1. d4 {[%clk 0:03:00]}  Nf6 {[%clk 0:02:46]} 2. c4 {[%clk 0:02:59]}  c6 {[%clk 0:02:45]} 3. d5 {[%clk 0:02:53]}  d6 {[%clk 0:02:41]} 4. Nc3 {[%clk 0:02:51]}  e6 {[%clk 0:02:41]} 5. dxe6 {[%clk 0:02:44]}  Bxe6 {[%clk 0:02:42]} 6. e4 {[%clk 0:02:44]}  g6 {[%clk 0:02:42]} 7. Nf3 {[%clk 0:02:41]}  Bg7 {[%clk 0:02:42]} 8. Nd4 {[%clk 0:02:41]}  Bc8 {[%clk 0:02:33]} 9. g3 {[%clk 0:02:27]}  O-O {[%clk 0:02:33]} 10. Bg2 {[%clk 0:02:26]}  Re8 {[%clk 0:02:34]} 11. O-O {[%clk 0:02:26]}  Na6 {[%clk 0:02:34]} 12. Re1 {[%clk 0:02:20]}  Nc5 {[%clk 0:02:33]} 13. h3 {[%clk 0:02:20]}  a5 {[%clk 0:02:33]} 14. b3 {[%clk 0:02:14]}  Qc7 {[%clk 0:02:32]} 15. Bb2 {[%clk 0:02:12]}  Bd7 {[%clk 0:02:30]} 16. Qd2 {[%clk 0:02:11]}  Rad8 {[%clk 0:02:30]} 17. Rad1 {[%clk 0:02:11]}  Bc8 {[%clk 0:02:30]} 18. f4 {[%clk 0:02:04]}  Nh5 {[%clk 0:02:30]} 19. Kh2 {[%clk 0:01:59]}  Bh6 {[%clk 0:02:11]} 20. Qf2 {[%clk 0:01:49]}  Ne6 {[%clk 0:01:50]} 21. Nxe6 {[%clk 0:01:37]}  Bxe6 {[%clk 0:01:51]} 22. Ne2 {[%clk 0:01:07]}  d5 {[%clk 0:01:41]} 23. f5 {[%clk 0:00:49]}  Bc8 {[%clk 0:01:35]} 24. cxd5 {[%clk 0:00:31]}  cxd5 {[%clk 0:01:34]} 25. e5 {[%clk 0:00:26]}  Qc2 {[%clk 0:00:57]} 26. e6 {[%clk 0:00:23]}  fxe6 {[%clk 0:00:47]} 27. fxg6 {[%clk 0:00:22]}  hxg6 {[%clk 0:00:34]} 28. Be5 {[%clk 0:00:22]}  Rf8 {[%clk 0:00:34]} 29. Qd4 {[%clk 0:00:21]}  Bg7 {[%clk 0:00:28]} 30. Bxg7 {[%clk 0:00:18]}  Nxg7 {[%clk 0:00:29]} 31. Nf4 {[%clk 0:00:19]}  Nf5 {[%clk 0:00:26]} 32. Qe5 {[%clk 0:00:17]}  Qf2 {[%clk 0:00:26]} 33. Nxg6 {[%clk 0:00:12]}  Kh7 {[%clk 0:00:21]} 34. Nxf8+ {[%clk 0:00:12]}  Rxf8 {[%clk 0:00:22]} 35. Rf1 {[%clk 0:00:12]}  Qc2 {[%clk 0:00:16]} 36. Rde1 {[%clk 0:00:11]}  Rg8 {[%clk 0:00:14]} 37. g4 {[%clk 0:00:10]}  Nh6 {[%clk 0:00:08]} 38. Re2 {[%clk 0:00:09]}  Qg6 {[%clk 0:00:08]} 39. Ref2 {[%clk 0:00:09]}  Bd7 {[%clk 0:00:07]} 40. Rf6 {[%clk 0:00:09]}  Qg7 {[%clk 0:00:06]} 41. R1f2 {[%clk 0:00:08]}  Kh8 {[%clk 0:00:03]} 42. Qh5 {[%clk 0:00:08]}  Kh7 {[%clk 0:00:03]} 43. Bf1 {[%clk 0:00:06]}  Be8 {[%clk 0:00:03]} 44. Bd3+ {[%clk 0:00:05]}  Bg6 {[%clk 0:00:02]} 45. Bxg6+ {[%clk 0:00:05]}  Qxg6 {[%clk 0:00:03]} 46. Rxg6 {[%clk 0:00:05]}  Rxg6 {[%clk 0:00:04]} 47. Rf7+ {[%clk 0:00:06]}  Kg8 {[%clk 0:00:04]} 48. Qxg6+ {[%clk 0:00:06]} 1-0


[Site "https://www.chess.com"]

[Event "Titled Tuesday Blitz May 03 Early 2022"]
[White "Karthikeyan, Murali"]
[Black "Sjugirov, Sanan"]
[WhiteFideId "5074452"]
[BlackFideId "4189302"]
[WhiteElo "2579"]
[BlackElo "2602"]
[Result "1-0"]
[Round "04"]
[TimeControl "180+1"]
[Date "2022.05.03"]
[WhiteClock "0:00:07"]
[BlackClock "0:00:05"]

1. e4 {[%clk 0:03:00]}  e5 {[%clk 0:02:57]} 2. Nf3 {[%clk 0:03:01]}  Nc6 {[%clk 0:02:58]} 3. Bb5 {[%clk 0:02:59]}  a6 {[%clk 0:02:57]} 4. Bxc6 {[%clk 0:02:58]}  dxc6 {[%clk 0:02:57]} 5. O-O {[%clk 0:02:56]}  Bg4 {[%clk 0:02:51]} 6. h3 {[%clk 0:02:55]}  h5 {[%clk 0:02:49]} 7. d3 {[%clk 0:02:53]}  Qf6 {[%clk 0:02:49]} 8. Be3 {[%clk 0:02:53]}  Bxf3 {[%clk 0:02:48]} 9. Qxf3 {[%clk 0:02:54]}  Qxf3 {[%clk 0:02:48]} 10. gxf3 {[%clk 0:02:55]}  Bd6 {[%clk 0:02:45]} 11. Nd2 {[%clk 0:02:52]}  Ne7 {[%clk 0:02:45]} 12. Kh2 {[%clk 0:02:35]}  f5 {[%clk 0:02:27]} 13. Nc4 {[%clk 0:02:28]}  b5 {[%clk 0:01:42]} 14. Nxd6+ {[%clk 0:01:59]}  cxd6 {[%clk 0:01:43]} 15. f4 {[%clk 0:02:00]}  exf4 {[%clk 0:01:16]} 16. Bxf4 {[%clk 0:01:59]}  d5 {[%clk 0:01:17]} 17. exd5 {[%clk 0:01:53]}  Nxd5 {[%clk 0:01:16]} 18. Bd2 {[%clk 0:01:35]}  Kf7 {[%clk 0:01:14]} 19. Rae1 {[%clk 0:01:34]}  Rhe8 {[%clk 0:01:13]} 20. Kg3 {[%clk 0:01:31]}  g6 {[%clk 0:00:35]} 21. h4 {[%clk 0:01:16]}  Nc7 {[%clk 0:00:30]} 22. Bf4 {[%clk 0:01:04]}  Ne6 {[%clk 0:00:26]} 23. Be5 {[%clk 0:01:04]}  Rad8 {[%clk 0:00:16]} 24. f4 {[%clk 0:01:04]}  c5 {[%clk 0:00:16]} 25. Kf2 {[%clk 0:00:47]}  c4 {[%clk 0:00:16]} 26. dxc4 {[%clk 0:00:47]}  bxc4 {[%clk 0:00:17]} 27. Rd1 {[%clk 0:00:46]}  Nc5 {[%clk 0:00:17]} 28. b4 {[%clk 0:00:42]}  Ne4+ {[%clk 0:00:11]} 29. Ke3 {[%clk 0:00:38]}  Ke6 {[%clk 0:00:06]} 30. Rg1 {[%clk 0:00:30]}  Kf7 {[%clk 0:00:06]} 31. a4 {[%clk 0:00:20]}  Rxd1 {[%clk 0:00:04]} 32. Rxd1 {[%clk 0:00:21]}  Nf6 {[%clk 0:00:04]} 33. Kf3 {[%clk 0:00:17]}  Ng4 {[%clk 0:00:04]} 34. Bd4 {[%clk 0:00:18]}  Rd8 {[%clk 0:00:03]} 35. c3 {[%clk 0:00:17]}  Nf6 {[%clk 0:00:03]} 36. b5 {[%clk 0:00:09]}  axb5 {[%clk 0:00:03]} 37. axb5 {[%clk 0:00:10]}  Ne4 {[%clk 0:00:04]} 38. b6 {[%clk 0:00:10]}  Nxc3 {[%clk 0:00:03]} 39. Rd2 {[%clk 0:00:04]}  Ne4 {[%clk 0:00:03]} 40. Rd1 {[%clk 0:00:04]}  Nc3 {[%clk 0:00:03]} 41. Rd2 {[%clk 0:00:04]}  Nb5 {[%clk 0:00:03]} 42. Be3 {[%clk 0:00:04]}  Rxd2 {[%clk 0:00:03]} 43. Bxd2 {[%clk 0:00:04]}  Nd6 {[%clk 0:00:03]} 44. Bb4 {[%clk 0:00:05]}  Nb7 {[%clk 0:00:02]} 45. Ke3 {[%clk 0:00:05]}  Ke6 {[%clk 0:00:01]} 46. Kd4 {[%clk 0:00:06]}  Kd7 {[%clk 0:00:02]} 47. Kd5 {[%clk 0:00:04]}  Nd8 {[%clk 0:00:02]} 48. Kxc4 {[%clk 0:00:03]}  Kc6 {[%clk 0:00:03]} 49. Bc5 {[%clk 0:00:03]}  Ne6 {[%clk 0:00:02]} 50. Be3 {[%clk 0:00:04]}  Nf8 {[%clk 0:00:02]} 51. Kd4 {[%clk 0:00:04]}  Nd7 {[%clk 0:00:03]} 52. b7 {[%clk 0:00:04]}  Kxb7 {[%clk 0:00:03]} 53. Kd5 {[%clk 0:00:05]}  Nf6+ {[%clk 0:00:03]} 54. Ke6 {[%clk 0:00:05]}  Ne4 {[%clk 0:00:02]} 55. Kf7 {[%clk 0:00:05]}  Nc3 {[%clk 0:00:02]} 56. Kxg6 {[%clk 0:00:05]}  Nd5 {[%clk 0:00:02]} 57. Bd2 {[%clk 0:00:05]}  Kc6 {[%clk 0:00:02]} 58. Kxh5 {[%clk 0:00:05]}  Kd6 {[%clk 0:00:03]} 59. Kg6 {[%clk 0:00:06]}  Ke6 {[%clk 0:00:04]} 60. h5 {[%clk 0:00:06]}  Ne7+ {[%clk 0:00:05]} 61. Kg7 {[%clk 0:00:07]} 1-0


[Site "https://www.chess.com"]